bitfinex-derivatives/quotes_SOLF0:USTF0_20220102
["timestamp","ask_amount","ask_price","bid_price","bid_amount"]
[1641097441672,11.99304576,177.43,177.35,66.92189]
[1641097442374,11.99304576,177.43,177.35,58.48189]
[1641097442575,17.71704576,177.43,177.35,58.48189]
[1641097442775,17.71704576,177.43,177.38,3.99779797]
[1641097442975,5.724,177.43,177.38,3.99779797]
[1641097443478,14.69400933,177.42,177.36,3.99816233]
[1641097444481,3.99820094,177.38,177.36,1.29666645]
[1641097445280,14.69400933,177.42,177.37,3.99811407]
[1641097445680,3.99811399,177.38,177.36,27.66479]
[1641097446582,29.4898,177.41,177.37,5.29479155]
[1641097446982,2.70096357,177.4,177.36,27.66479]
[1641097447685,41.48284576,177.41,177.36,27.66479]
[1641097447982,41.48284576,177.41,177.37,5.30069972]
[1641097448383,2.70444382,177.4,177.36,27.66479]
[1641097448783,29.4898,177.41,177.37,5.30060651]
[1641097449583,29.4898,177.41,177.37,4.00251922]
[1641097449785,2.70443691,177.4,177.35,33.25938684]
[1641097450083,29.4898,177.41,177.36,27.66479]
[1641097450285,29.4898,177.41,177.37,4.00254461]
[1641097451085,29.4898,177.41,177.36,28.96287475]
[1641097451286,2.70446093,177.4,177.37,1.29808465]
[1641097451889,29.4898,177.41,177.37,4.00249281]
[1641097452789,2.70440208,177.4,177.37,1.29809]
[1641097453587,29.4898,177.41,177.35,31.9613]
[1641097453790,29.4898,177.41,177.38,4.00249095]
[1641097454088,12.00747842,177.42,177.36,28.96288012]
[1641097454289,2.7043922,177.4,177.36,27.66479]
[1641097454789,12.00747842,177.42,177.36,27.66479]
[1641097454990,12.00747842,177.42,177.38,4.00246456]
[1641097455293,12.00747842,177.42,177.36,1.29809289]
[1641097456190,12.00747842,177.42,177.36,28.96288289]
[1641097456390,12.00747842,177.42,177.38,4.00247987]
[1641097456991,12.00747842,177.42,177.38,5.547]
[1641097457193,12.58433964,177.44,177.4,4.00209366]
[1641097457194,14.71185022,177.44,177.4,4.00209366]
[1641097457691,14.71185022,177.44,177.38,5.547]
[1641097457894,2.7043718,177.44,177.39,1.29814765]
[1641097458594,12.00747842,177.44,177.4,4.00198144]
[1641097459096,12.00747842,177.44,177.38,5.547]
[1641097459296,2.70384116,177.44,177.39,1.298141]
[1641097459495,2.70384116,177.44,177.39,9.92956434]
[1641097459896,12.005936,177.44,177.4,7.00197867]
[1641097460095,12.005936,177.44,177.4,4.00197867]
[1641097460399,12.005936,177.44,177.43,27.66479]
[1641097460599,12.005936,177.44,177.4,4.00197867]
[1641097460796,31.94148302,177.48,177.39,37.02982334]
[1641097460998,12.00376286,177.47,177.43,4.00125429]
[1641097461697,12.57865137,177.48,177.4,1.29821378]
[1641097461899,12.00446258,177.46,177.42,4.00148753]
[1641097462198,12.57865137,177.48,177.39,64.69461334]
[1641097463301,12.00449191,177.46,177.42,4.0014973]
[1641097463498,17.80449191,177.46,177.42,4.0014973]
[1641097463800,2.7030405,177.45,177.39,64.69461334]
[1641097464901,12.00449823,177.46,177.42,4.00149941]
[1641097465301,28.9233,177.49,177.39,64.69461334]
[1641097465501,14.6719007,177.48,177.4,3.99173063]
[1641097466100,14.6719007,177.48,177.4,1.29502202]
[1641097466901,14.6719007,177.48,177.39,64.69461334]
[1641097467101,14.6719007,177.48,177.4,3.99173304]
[1641097467504,14.6719007,177.48,177.39,64.69461334]
[1641097467702,11.97519189,177.46,177.42,4.00149991]
[1641097468203,12.57320391,177.48,177.39,64.69461334]
[1641097468405,12.00448845,177.47,177.43,4.00149615]
[1641097468904,12.00448845,177.47,177.4,1.2981899]
[1641097470007,12.00448845,177.47,177.43,4.00149165]
[1641097470507,12.00448845,177.46,177.42,4.00157496]
[1641097471305,12.57320391,177.48,177.39,37.02982334]
[1641097472106,12.00473384,177.46,177.42,4.00157795]
[1641097472305,16.34473384,177.46,177.42,4.00157795]
[1641097472707,2.69670881,177.45,177.39,64.69461334]
[1641097473307,12.0051791,177.46,177.42,4.00172637]
[1641097474609,12.0051791,177.46,177.39,64.69461334]
[1641097474809,42.0854791,177.46,177.39,64.69461334]
[1641097475208,42.0854791,177.46,177.39,37.02982334]
[1641097475509,2.70356271,177.45,177.42,4.00175046]
[1641097476712,42.0854791,177.46,177.39,64.69461334]
[1641097476912,42.0854791,177.46,177.41,4.00175262]
[1641097476913,12.0051791,177.45,177.41,4.00175262]
[1641097477412,2.70359122,177.45,177.4,1.29816372]
[1641097478012,30.0803,177.46,177.39,37.02982334]
[1641097478214,12.00526552,177.45,177.41,4.00175517]
[1641097478714,30.0803,177.46,177.39,64.69461334]
[1641097478913,2.70361434,177.45,177.4,1.29816162]
[1641097479517,30.0803,177.46,177.39,64.69461334]
[1641097479715,12.00547701,177.45,177.41,4.00182567]
[1641097480117,14.70914725,177.45,177.4,1.29815653]
[1641097480716,14.70914725,177.45,177.39,64.69461334]
[1641097480915,14.70914725,177.45,177.41,4.00183493]
[1641097481520,14.70914725,177.45,177.4,1.29815391]
[1641097482020,14.70914725,177.45,177.41,4.00187504]
[1641097482720,14.70914725,177.45,177.4,1.29815173]
[1641097483220,14.70914725,177.45,177.39,37.02982334]
[1641097483421,14.70914725,177.45,177.41,4.00187178]
[1641097483921,30.0803,177.46,177.4,1.29815255]
[1641097484624,14.7093208,177.45,177.41,4.0018683]
[1641097485221,42.08588857,177.46,177.4,1.29815293]
[1641097486124,2.70027114,177.45,177.4,3.99677166]
[1641097486824,42.08588857,177.46,177.4,1.29650018]
[1641097487527,2.70023394,177.45,177.4,3.99673784]
[1641097488127,42.08588857,177.46,177.4,1.29650127]
[1641097489028,42.08588857,177.46,177.39,64.69461334]
[1641097489230,2.70017786,177.45,177.41,3.99668686]
[1641097489731,30.0803,177.46,177.4,1.29650918]
[1641097490228,2.70016781,177.45,177.41,3.99667772]
[1641097490930,30.0803,177.46,177.4,5.29319148]
[1641097491131,42.08588857,177.46,177.4,5.29319148]
[1641097491429,2.70017093,177.45,177.39,37.02982334]
[1641097492031,42.08588857,177.46,177.39,37.02982334]
[1641097492234,42.08588857,177.46,177.4,5.2932184]
[1641097492632,2.70024371,177.45,177.39,37.02982334]
[1641097494033,2.70024371,177.45,177.4,5.29325249]
[1641097494534,2.70024371,177.45,177.39,37.02982334]
[1641097494735,12.00558857,177.44,177.39,37.02982334]
[1641097494933,12.00558857,177.44,177.36,15.20655325]
[1641097495133,12.00558857,177.44,177.36,47.16305325]
[1641097495334,14.70583228,177.44,177.4,5.300165]
[1641097496035,12.00558857,177.43,177.38,4.0023379]
[1641097496633,12.00558857,177.43,177.36,31.9565]
[1641097497236,12.00558857,177.43,177.38,4.00234756]
[1641097497635,12.00558857,177.43,177.36,31.9565]
[1641097498438,39.67037857,177.43,177.39,4.00236491]
[1641097499036,39.67037857,177.43,177.36,31.9565]
[1641097499237,14.70583228,177.42,177.38,4.0025679]
[1641097499739,27.66479,177.43,177.37,1.29808242]
[1641097500639,14.71218296,177.42,177.38,4.00256638]
[1641097501237,27.66479,177.43,177.37,1.29808134]
[1641097501736,27.66479,177.43,177.36,31.9565]
[1641097501936,14.71223825,177.42,177.38,4.00257987]
[1641097502339,27.66479,177.43,177.37,1.29808103]
[1641097502937,2.69571211,177.42,177.36,35.94607534]
[1641097503737,11.96872602,177.45,177.36,31.9565]
[1641097504338,14.66443037,177.45,177.36,35.94606828]
[1641097504539,27.66479,177.43,177.36,35.94606828]
[1641097504941,27.66479,177.43,177.36,31.9565]
[1641097505439,2.69570435,177.42,177.36,35.9460748]
[1641097506041,27.66479,177.43,177.36,31.9565]
[1641097506240,27.66479,177.43,177.36,38.0785]
[1641097506743,2.69569939,177.42,177.36,38.0785]
[1641097506943,2.69569939,177.42,177.36,31.67438893]
[1641097507644,2.69569939,177.42,177.36,35.66394674]
[1641097508342,2.69569939,177.42,177.36,31.67438893]
[1641097509442,6.92869939,177.42,177.36,25.55238893]
[1641097509643,6.92869939,177.42,177.36,29.54194674]
[1641097510144,2.69569939,177.41,177.36,29.54194674]
[1641097510743,3.99228196,177.4,177.36,29.54194674]
[1641097510944,3.99228196,177.4,177.36,3.98955781]
[1641097511342,3.99228196,177.4,177.36,5.28432248]
[1641097515946,14.66442541,177.42,177.38,3.98955781]
[1641097516747,2.69569939,177.42,177.38,3.98955781]
[1641097517348,14.66442541,177.42,177.38,3.98955781]
[1641097521755,2.69569939,177.42,177.38,3.98955781]
[1641097522859,2.69569939,177.42,177.4,3.98955781]
[1641097524861,2.69569939,177.42,177.38,3.98955781]
[1641097526261,2.69569939,177.42,177.39,3.98955781]
[1641097526862,2.69569939,177.42,177.38,3.98955781]
[1641097527372,2.69569939,177.42,177.39,3.98955781]
[1641097528668,2.69569939,177.42,177.37,1.29476467]
[1641097528669,14.66442541,177.42,177.37,5.28432248]
[1641097529367,2.69569939,177.42,177.38,3.98955781]
[1641097529867,2.69569939,177.42,177.37,5.28432248]
[1641097529868,14.66442541,177.42,177.37,5.28432248]
[1641097531471,3.9994329,177.38,177.37,5.28432248]
[1641097533273,11.96872602,177.41,177.35,6.98955781]
[1641097533975,11.96872602,177.41,177.36,3.98955781]
[1641097534173,2.69569939,177.42,177.36,5.28699968]
[1641097534174,3.99949359,177.38,177.36,5.28699968]
[1641097535577,3.99949359,177.38,177.36,8.28699968]
[1641097536179,3.99949359,177.38,177.37,5.28699968]
[1641097542583,3.99949359,177.38,177.37,1.29744187]
[1641097543684,3.99949359,177.38,177.36,6.99683756]
[1641097545686,3.99949359,177.38,177.37,3.0]
[1641097547390,3.99949359,177.38,177.36,6.99683756]
[1641097547591,3.99949359,177.39,177.36,6.99683756]
[1641097548290,3.99949359,177.38,177.36,6.99683756]
[1641097548992,3.99949359,177.38,177.36,34.66162756]
[1641097550798,3.99949359,177.38,177.36,6.99683756]
[1641097551193,3.99949359,177.39,177.37,5.29343546]
[1641097552596,3.99949359,177.39,177.36,6.99683756]
[1641097553397,3.99949359,177.39,177.36,34.66162756]
[1641097554399,3.99949359,177.39,177.37,3.0]
[1641097556298,3.99949359,177.39,177.37,6.99683756]
[1641097556897,3.99949359,177.38,177.37,6.99683756]
[1641097557498,3.99949359,177.38,177.37,8.29530896]
[1641097559203,11.96872602,177.41,177.37,8.29530896]
[1641097560002,11.96872602,177.41,177.37,6.99683756]
[1641097565005,4.00200396,177.38,177.37,6.99683756]
[1641097565706,4.00200396,177.38,177.37,8.29513939]
[1641097566906,4.00200396,177.38,177.37,4.29830183]
[1641097567408,14.66442541,177.42,177.37,3.0]
[1641097568108,14.66442541,177.42,177.38,5.30033857]
[1641097568711,14.66442541,177.42,177.37,1.29830223]
[1641097569611,14.66442541,177.42,177.38,4.00200428]
[1641097570210,14.66442541,177.42,177.37,1.2983057]
[1641097570511,11.96872602,177.42,177.36,3.0]
[1641097570713,58.38139,177.43,177.38,4.00194915]
[1641097571617,14.70957382,177.42,177.37,1.29830562]
[1641097572114,58.38139,177.43,177.38,4.00196215]
[1641097572915,14.709543,177.42,177.37,1.29830637]
[1641097573115,14.709543,177.42,177.37,4.29830637]
[1641097573517,58.38139,177.43,177.37,7.00197444]
[1641097574719,58.38139,177.43,177.37,3.0]
[1641097575017,14.71137889,177.42,177.38,5.30096057]
[1641097575419,14.71137889,177.42,177.37,4.0025766]
[1641097576517,14.71137889,177.42,177.37,1.29848489]
[1641097576917,14.71137889,177.42,177.38,4.00250297]
[1641097577629,14.71137889,177.42,177.37,5.29896986]
[1641097578620,14.71137889,177.42,177.36,3.0]
[1641097578919,14.71137889,177.42,177.38,4.00093398]
[1641097579521,14.71137889,177.42,177.36,3.0]
[1641097579821,2.70397521,177.42,177.36,3.0]
[1641097580123,70.38879368,177.43,177.38,4.00089748]
[1641097580522,42.72400368,177.43,177.38,4.00089748]
[1641097580723,2.70289265,177.42,177.37,3.0]
[1641097580923,2.70289265,177.42,177.36,31.2]
[1641097581523,42.72400368,177.43,177.38,4.00096355]
[1641097582023,14.71043305,177.42,177.36,31.2]
[1641097582725,14.71043305,177.42,177.38,4.00101885]
[1641097583524,4.00097772,177.39,177.36,31.2]
[1641097583724,4.00097772,177.39,177.35,22.04]
[1641097583923,4.00097772,177.39,177.36,3.0]
[1641097584123,42.72400368,177.43,177.38,4.00100421]
[1641097584723,4.00096155,177.39,177.37,1.29799525]
[1641097585928,42.72400368,177.43,177.36,34.7693]
[1641097586126,42.72400368,177.43,177.38,4.00096758]
[1641097586427,4.00096385,177.39,177.37,1.29799502]
[1641097587026,42.72400368,177.43,177.38,4.00092979]
[1641097588229,2.70280123,177.42,177.39,4.00081149]
[1641097588834,42.72400368,177.43,177.39,4.00081149]
[1641097589034,42.72400368,177.43,177.38,4.00091713]
[1641097589035,12.00740368,177.42,177.38,4.00091713]
[1641097589834,2.70282289,177.42,177.37,1.29800828]
[1641097590433,42.71909353,177.43,177.38,4.00080106]
[1641097591235,2.70134767,177.42,177.37,1.29731861]
[1641097591636,42.71909353,177.43,177.36,33.7413]
[1641097591836,42.71909353,177.43,177.38,3.99866492]
[1641097592436,2.7013424,177.42,177.37,1.29731908]
[1641097593240,42.71909353,177.43,177.36,33.7413]
[1641097593241,42.71909353,177.43,177.38,3.99866171]
[1641097593639,2.70134278,177.42,177.37,1.29731905]
[1641097594540,42.71909353,177.43,177.38,3.99866189]
[1641097595141,2.70142627,177.42,177.37,1.29736542]
[1641097596643,42.71909353,177.43,177.36,33.7413]
[1641097596842,30.7166,177.43,177.38,3.99881938]
[1641097597241,2.70143338,177.42,177.37,1.29736478]
[1641097597941,30.7166,177.43,177.38,3.99879879]
[1641097598540,30.7166,177.43,177.36,33.7413]
[1641097598742,2.70142495,177.42,177.37,1.29736554]
[1641097599143,30.7166,177.43,177.36,33.7413]
[1641097599345,30.7166,177.43,177.38,3.99879298]
[1641097599744,2.70142808,177.42,177.37,1.29736526]
[1641097599945,2.70142808,177.42,177.37,4.29736526]
[1641097600348,30.7166,177.43,177.38,8.29615903]
[1641097600547,30.7166,177.43,177.38,5.29615903]
[1641097600747,30.7166,177.43,177.38,8.29615903]
[1641097600946,30.7166,177.43,177.39,3.0]
[1641097601146,12.00249353,177.44,177.39,8.205]
[1641097601547,2.7012475,177.42,177.39,12.20362918]
[1641097601849,2.7012475,177.42,177.39,9.20362918]
[1641097602149,41.25549353,177.47,177.41,3.99808076]
[1641097602946,41.25549353,177.47,177.42,27.66479]
[1641097603148,2.70064425,177.46,177.42,27.66479]
[1641097603647,14.70313778,177.46,177.41,3.99821527]
[1641097604348,3.99817149,177.42,177.4,1.29742744]
[1641097604848,14.70313778,177.46,177.41,3.99815842]
[1641097605452,14.70313778,177.46,177.39,35.3151]
[1641097605650,3.99113191,177.43,177.39,39.30623191]
[1641097606149,2.70064425,177.46,177.39,35.3151]
[1641097606850,3.99114644,177.43,177.39,39.30624644]
[1641097607052,3.99114644,177.43,177.39,9.19614644]
[1641097607753,2.70064425,177.46,177.39,5.205]
[1641097607950,2.70064425,177.46,177.38,7.0]
[1641097608351,3.99091102,177.43,177.39,5.28597668]
[1641097608552,3.99091102,177.43,177.39,11.02197668]
[1641097608851,2.70064425,177.46,177.39,5.736]
[1641097609554,3.99089611,177.43,177.4,27.66479]
[1641097609757,3.99089611,177.43,177.42,3.0]
[1641097610155,3.99089611,177.43,177.41,7.0]
[1641097610352,3.99089611,177.43,177.41,4.0]
[1641097610553,3.99077067,177.44,177.41,4.0]
[1641097610754,3.99077067,177.44,177.4,33.54978504]
[1641097611154,3.99077067,177.44,177.4,29.55901437]
[1641097611354,3.99077067,177.46,177.42,5.2855055]
[1641097611554,3.99077067,177.46,177.45,27.66479]
[1641097611854,3.99077067,177.46,177.43,30.7777]
[1641097612053,8.93577067,177.46,177.42,5.2855055]
[1641097612256,8.93577067,177.46,177.42,3.99038748]
[1641097613255,8.93577067,177.46,177.4,26.55901437]
[1641097613256,3.99077067,177.44,177.4,30.54940185]
[1641097613956,3.99077067,177.43,177.4,26.55901437]
[1641097614555,3.99077067,177.42,177.4,26.55901437]
[1641097615156,3.99077067,177.42,177.38,3.99038748]
[1641097615656,3.99077067,177.42,177.4,27.66479]
[1641097616258,3.99077067,177.42,177.38,5.28541563]
[1641097616956,3.99077067,177.42,177.38,3.99038748]
[1641097617558,3.99077067,177.41,177.37,35.10868748]
[1641097617860,3.99077067,177.41,177.37,3.99038748]
[1641097619562,3.99077067,177.41,177.36,4.29532946]
[1641097619563,3.99077067,177.43,177.39,3.99038748]
[1641097620360,3.99077067,177.42,177.38,5.28571694]
[1641097620761,3.99077067,177.42,177.39,3.99038748]
[1641097623364,3.99077067,177.41,177.39,3.99038748]
[1641097626870,3.99077067,177.42,177.39,3.99038748]
[1641097627271,3.99077067,177.42,177.4,3.99038748]
[1641097634284,3.99077067,177.43,177.4,3.99038748]
[1641097635383,2.69586571,177.44,177.42,3.99038748]
[1641097643192,2.69586571,177.44,177.42,5.28571694]
[1641097643793,2.69586571,177.44,177.43,3.99038748]
[1641097645604,12.00249353,177.47,177.43,3.99038748]
[1641097646697,2.69586571,177.48,177.41,31.65517748]
[1641097646897,5.601,177.47,177.41,31.65517748]
[1641097650701,4.00133055,177.44,177.43,3.99038748]
[1641097655403,9.57033055,177.44,177.43,3.99038748]
[1641097656104,8.27140503,177.44,177.42,3.99038748]
[1641097657507,2.70240503,177.43,177.42,3.99038748]
[1641097662610,5.569,177.44,177.42,3.99038748]
[1641097662810,3.99522279,177.43,177.4,33.81938748]
[1641097663010,3.99522279,177.43,177.4,3.99038748]
[1641097663412,3.99522279,177.42,177.4,3.99038748]
[1641097663612,3.99522279,177.42,177.4,5.28717003]
[1641097664414,3.99522279,177.43,177.4,5.28717003]
[1641097665016,3.99522279,177.42,177.4,5.28717003]
[1641097666218,3.99522279,177.42,177.39,3.99038748]
[1641097666820,3.99522279,177.42,177.4,3.99038748]
[1641097669518,3.99522279,177.42,177.39,3.99038748]
[1641097669720,9.08422279,177.42,177.39,3.99038748]
[1641097671420,3.99522279,177.41,177.39,3.99038748]
[1641097671922,3.99522279,177.41,177.37,1.29678255]
[1641097671923,41.81899353,177.45,177.36,29.1706]
[1641097672122,2.6988685,177.44,177.36,29.1706]
[1641097672521,3.99562358,177.41,177.39,3.99562358]
[1641097673123,41.81899353,177.45,177.36,29.1706]
[1641097673321,2.69886746,177.44,177.36,29.1706]
[1641097673825,3.99562377,177.41,177.39,3.99562377]
[1641097674724,2.69886746,177.44,177.36,29.1706]
[1641097675325,3.99562775,177.41,177.39,3.99562775]
[1641097675825,2.69886746,177.44,177.36,29.1706]
[1641097676024,30.36365746,177.44,177.36,29.1706]
[1641097676628,2.69886746,177.43,177.4,4.00207586]
[1641097677327,39.66728353,177.44,177.36,41.17553713]
[1641097678028,39.66728353,177.44,177.35,41.73732351]
[1641097678029,2.70331988,177.43,177.39,4.00216224]
[1641097678228,3.0,177.4,177.35,12.00493713]
[1641097678429,9.624,177.4,177.35,12.00493713]
[1641097678628,3.0,177.38,177.31,43.95047813]
[1641097678829,3.0,177.39,177.31,12.00899511]
[1641097679033,3.0,177.38,177.31,12.00899511]
[1641097679428,3.0,177.38,177.27,40.77952853]
[1641097679630,3.0,177.38,177.27,14.96831081]
[1641097679829,3.0,177.39,177.27,14.96831081]
[1641097680030,27.66479,177.35,177.27,14.96831081]
[1641097681131,27.66479,177.35,177.27,8.83804551]
[1641097681333,21.25871415,177.35,177.27,8.83804551]
[1641097681732,26.61771415,177.35,177.27,8.83804551]
[1641097682832,26.61771415,177.35,177.27,5.63507269]
[1641097687444,5.359,177.35,177.27,5.63507269]
[1641097687641,30.6436,177.36,177.27,5.63507269]
[1641097688241,30.6436,177.36,177.27,12.26407269]
[1641097688943,27.66479,177.35,177.27,12.26407269]
[1641097689945,30.6436,177.36,177.27,12.26407269]
[1641097690945,27.66479,177.35,177.27,12.26407269]
[1641097692147,30.6436,177.36,177.27,12.26407269]
[1641097692546,30.6436,177.36,177.27,18.39245537]
[1641097692945,27.66479,177.35,177.27,18.39245537]
[1641097693344,30.6436,177.36,177.27,18.39245537]
[1641097702058,30.6436,177.36,177.29,3.0]
[1641097702358,30.6436,177.36,177.27,21.39245537]
[1641097702558,27.66479,177.4,177.32,3.0]
[1641097702762,62.68508302,177.42,177.34,3.0]
[1641097702960,62.68508302,177.42,177.32,6.46]
[1641097703360,62.68508302,177.42,177.34,27.66479]
[1641097703560,30.7436,177.42,177.35,5.63269215]
[1641097710973,30.7436,177.42,177.35,23.76589674]
[1641097713774,30.7436,177.42,177.35,45.3028457]
[1641097714376,30.7436,177.42,177.35,33.29748215]
[1641097715675,30.7436,177.42,177.38,27.66479]
[1641097715877,30.66479,177.46,177.38,27.66479]
[1641097716078,60.44069,177.46,177.38,27.66479]
[1641097717778,60.44069,177.46,177.36,29.8259]
[1641097718781,2.68753745,177.45,177.36,29.8259]
[1641097721286,5.68753745,177.45,177.36,29.8259]
[1641097721985,2.68753745,177.44,177.36,29.8259]
[1641097723685,2.68753745,177.44,177.39,27.66479]
[1641097724086,2.68753745,177.45,177.39,27.66479]
[1641097724588,12.00536355,177.44,177.39,27.66479]
[1641097725290,12.00536355,177.44,177.4,1.29737168]
[1641097725789,12.00536355,177.43,177.39,27.66479]
[1641097725988,17.48936355,177.43,177.39,27.66479]
[1641097727191,2.68753745,177.42,177.39,27.66479]
[1641097727790,2.68753745,177.42,177.36,29.8259]
[1641097728191,2.68753745,177.42,177.39,27.66479]
[1641097728392,12.00536355,177.43,177.39,27.66479]
[1641097731894,12.00536355,177.43,177.37,27.66479]
[1641097732095,17.692901,177.44,177.37,27.66479]
[1641097732293,17.692901,177.44,177.36,29.8259]
[1641097732794,2.68753745,177.43,177.37,1.29735593]
[1641097733093,8.44853745,177.43,177.37,1.29735593]
[1641097734395,2.68753745,177.42,177.37,1.29735593]
[1641097734795,2.68753745,177.43,177.37,1.29735593]
[1641097738696,2.68753745,177.43,177.39,3.99994509]
[1641097738896,3.99994509,177.4,177.39,3.99994509]
[1641097741700,5.638,177.41,177.36,29.8259]
[1641097741901,15.00536355,177.44,177.36,29.8259]
[1641097742304,3.99994439,177.4,177.39,3.99994439]
[1641097743308,15.00536355,177.44,177.36,29.8259]
[1641097743709,3.99992877,177.4,177.39,3.99992877]
[1641097744413,15.00536355,177.44,177.36,29.8259]
[1641097745212,14.71019413,177.43,177.39,4.00218833]
[1641097745913,3.0,177.44,177.39,4.00218833]
[1641097746113,3.0,177.44,177.36,29.8259]
[1641097746714,14.71138173,177.43,177.39,4.00218495]
[1641097747315,3.0,177.44,177.36,29.8259]
[1641097747514,15.00655939,177.44,177.4,4.00218646]
[1641097748214,2.70482848,177.43,177.37,1.29735794]
[1641097748715,15.00655939,177.44,177.4,4.00218526]
[1641097749315,2.70482715,177.43,177.37,1.29735806]
[1641097750116,15.00655939,177.44,177.4,4.0021889]
[1641097750518,2.70482889,177.43,177.37,7.2443579]
[1641097751417,15.00655939,177.44,177.4,4.00218664]
[1641097752018,15.00655939,177.44,177.37,5.947]
[1641097752218,2.70484473,177.43,177.38,27.66479]
[1641097753120,15.00655939,177.44,177.38,27.66479]
[1641097753420,15.00655939,177.44,177.4,4.0022092]
[1641097753721,2.7048541,177.43,177.38,27.66479]
[1641097754220,15.00655939,177.44,177.36,41.83126355]
[1641097754419,15.00655939,177.44,177.4,4.00221033]
[1641097755120,14.7114137,177.43,177.39,4.0022099]
[1641097755522,14.7114137,177.43,177.38,27.66479]
[1641097755721,14.7114137,177.43,177.39,1.29736174]
[1641097756421,3.0,177.44,177.38,27.66479]
[1641097756623,3.0,177.44,177.39,4.0021456]
[1641097756922,14.71122571,177.43,177.39,1.29736189]
[1641097757526,15.5853131,177.45,177.39,4.00214922]
[1641097758226,12.5853131,177.45,177.38,27.66479]
[1641097758426,12.00662292,177.43,177.39,1.29735582]
[1641097758925,12.00662292,177.43,177.38,27.66479]
[1641097759126,12.00662292,177.43,177.39,4.00218883]
[1641097759726,12.00662292,177.43,177.39,1.29735771]
[1641097760126,12.00662292,177.43,177.39,4.0021905]
[1641097760729,12.00662292,177.43,177.39,1.29735702]
[1641097761225,12.00662292,177.43,177.39,4.00219288]
[1641097761727,12.00662292,177.43,177.39,1.29735723]
[1641097762326,12.5853131,177.45,177.36,33.0277399]
[1641097762528,4.00218703,177.4,177.39,4.00218703]
[1641097762927,12.00656108,177.44,177.36,60.6925299]
[1641097763130,12.00656108,177.44,177.36,30.8666299]
[1641097763932,12.00656108,177.44,177.39,4.00218837]
[1641097764130,4.00218837,177.4,177.39,4.00218837]
[1641097764431,12.00656108,177.44,177.38,1.29735767]
[1641097765132,4.00206229,177.4,177.39,4.00206229]
[1641097766134,30.4525,177.43,177.37,30.6674]
[1641097766435,30.4525,177.43,177.38,1.29735769]
[1641097766634,4.0021841,177.4,177.39,4.0021841]
[1641097767437,30.4525,177.43,177.37,30.6674]
[1641097767638,30.4525,177.43,177.38,1.29735765]
[1641097768037,4.00218896,177.4,177.39,4.00218896]
[1641097769041,30.4525,177.43,177.36,3.2018399]
[1641097769440,30.4525,177.43,177.36,30.8666299]
[1641097769841,2.70487533,177.42,177.39,4.00222901]
[1641097770245,42.45906108,177.43,177.36,30.8666299]
[1641097771141,2.70489217,177.42,177.39,4.00224432]
[1641097772545,42.45906108,177.43,177.36,27.66479]
[1641097772945,2.70484814,177.42,177.39,4.00220429]
[1641097773545,42.45906108,177.43,177.36,27.66479]
[1641097774144,42.45906108,177.43,177.39,4.00220525]
[1641097774145,2.7048492,177.42,177.39,4.00220525]
[1641097774646,42.45906108,177.43,177.36,27.66479]
[1641097775647,42.45906108,177.43,177.39,4.0022181]
[1641097775847,2.70486333,177.42,177.39,4.0022181]
[1641097776147,42.45906108,177.43,177.36,27.66479]
[1641097776747,42.45906108,177.43,177.39,4.00222146]
[1641097776948,2.70486703,177.42,177.39,4.00222146]
[1641097777847,30.4525,177.43,177.4,4.00221439]
[1641097778046,12.00664317,177.44,177.4,4.00221439]
[1641097778246,14.71149898,177.44,177.37,1.29735545]
[1641097778448,45.60509898,177.44,177.37,1.29735545]
[1641097778953,45.60509898,177.44,177.36,42.87331652]
[1641097779149,2.70485581,177.43,177.4,4.00221011]
[1641097779850,42.90024317,177.44,177.36,42.87331652]
[1641097780052,6.279,177.43,177.37,1.29735514]
[1641097780854,2.70489465,177.42,177.4,4.00224657]
[1641097782056,2.70490286,177.43,177.37,1.29735118]
[1641097782658,42.90024317,177.44,177.36,15.20852652]
[1641097782857,42.90024317,177.44,177.39,4.00228609]
[1641097783456,14.71166264,177.43,177.37,1.29734057]
[1641097784356,14.71166264,177.43,177.39,4.00236294]
[1641097785057,14.71166264,177.43,177.38,1.29734933]
[1641097785562,14.71166264,177.43,177.39,4.00227402]
[1641097786260,14.71166264,177.43,177.38,1.29734907]
[1641097787259,14.71166264,177.43,177.38,4.0008747]
[1641097787460,14.71166264,177.43,177.41,27.66479]
[1641097788063,2.70501947,177.43,177.41,31.66517443]
[1641097788661,30.8936,177.44,177.41,27.66479]
[1641097788862,12.00664317,177.45,177.41,33.64779]
[1641097789264,12.00664317,177.45,177.41,37.64817736]
[1641097790064,12.00664317,177.45,177.41,33.64779]
[1641097790464,12.00664317,177.45,177.41,5.983]
[1641097790667,12.00664317,177.45,177.41,4.00037974]
[1641097791064,12.00664317,177.45,177.39,1.29694216]
[1641097791666,12.00664317,177.45,177.41,4.00037746]
[1641097791865,12.00664317,177.45,177.41,10.10337746]